bitfinex-derivatives/quotes_SOLF0:USTF0_20240906
["timestamp","ask_amount","ask_price","bid_price","bid_amount"]
[1725639805875,147.95243841,128.03,127.92,49.0455014]
[1725639806076,3.9095,127.97,127.92,49.0455014]
[1725639806386,147.95243841,128.03,127.92,52.9561014]
[1725639806682,1.08690786,128.02,127.92,52.9561014]
[1725639806984,3.9095,127.97,127.92,52.9561014]
[1725639807280,147.95243841,128.03,127.92,49.0455014]
[1725639807486,1.08690185,128.02,127.9,45.19]
[1725639807686,1.08690185,128.02,127.91,3.9108]
[1725639807987,1.08690185,128.02,127.92,45.19]
[1725639808181,3.8549308,128.03,127.92,49.18550832]
[1725639808387,3.9091,127.98,127.94,49.1]
[1725639808589,3.89735107,128.02,127.94,45.19]
[1725639808784,2.6216,128.05,127.94,45.19]
[1725639808990,3.9085,128.0,127.94,45.19]
[1725639809191,3.9085,128.0,127.92,3.99550832]
[1725639809192,3.9085,128.0,127.97,45.19]
[1725639809888,3.9093,127.97,127.96,1.3649]
[1725639810085,45.19,128.02,127.9,45.19]
[1725639810285,45.19,128.02,127.93,1.3649]
[1725639810286,3.9092,127.98,127.93,1.3649]
[1725639810587,45.19,128.04,127.93,1.3649]
[1725639810788,45.19,128.04,127.95,3.9098]
[1725639811090,45.19,128.04,127.94,45.19]
[1725639811489,3.9086,128.0,127.93,1.3649]
[1725639811689,45.19,128.02,127.93,1.3649]
[1725639811986,45.19,128.0,127.89,1.3406]
[1725639812189,3.9109,127.92,127.89,2.7089]
[1725639812392,45.19,128.0,127.89,2.7089]
[1725639812590,3.9104,127.94,127.89,2.7089]
[1725639812890,3.92020204,127.96,127.89,2.7089]
[1725639813092,3.9111,127.92,127.89,2.7089]
[1725639813294,3.97807057,127.95,127.89,1.3683]
[1725639813493,45.19,127.98,127.89,1.3683]
[1725639813690,3.9114,127.9,127.89,1.3683]
[1725639814886,3.9112,127.91,127.89,1.3683]
[1725639815094,2.7193,127.97,127.89,1.3683]
[1725639815290,6.59891755,127.97,127.89,1.3683]
[1725639815587,3.9108,127.92,127.89,1.3683]
[1725639815788,2.7193,127.97,127.89,1.3683]
[1725639815989,6.67442846,127.97,127.89,1.3683]
[1725639816388,37.58,127.96,127.89,1.3683]
[1725639816589,3.9114,127.9,127.89,1.3683]
[1725639816791,6.67442846,127.97,127.89,1.3683]
[1725639817095,3.9108,127.92,127.89,1.3683]
[1725639817290,6.67442846,127.97,127.89,1.3683]
[1725639817889,6.67442846,127.97,127.9,37.58]
[1725639818188,2.7193,127.97,127.9,37.58]
[1725639818388,3.9099,127.95,127.91,3.9111]
[1725639818588,37.58,128.0,127.91,3.9111]
[1725639818789,40.2291,128.02,127.92,37.58]
[1725639818988,3.9099,127.95,127.92,37.58]
[1725639820192,2.6491,128.02,127.94,37.58]
[1725639820600,2.6491,128.02,127.94,41.43310256]
[1725639820897,3.9091,127.98,127.94,41.43310256]
[1725639821094,2.6491,128.02,127.94,41.43310256]
[1725639821790,3.9103,127.94,127.92,37.58]
[1725639821991,3.81844856,127.96,127.89,1.3683]
[1725639822193,2.6491,128.02,127.89,1.3683]
[1725639822194,37.58,127.98,127.89,1.3683]
[1725639822395,3.911,127.92,127.88,37.58]
[1725639822589,3.911,127.92,127.88,38.9377]
[1725639823186,3.9111,127.91,127.88,38.9377]
[1725639823989,3.9111,127.91,127.88,1.3577]
[1725639824186,3.9114,127.9,127.88,1.3577]
[1725639824686,49.04123329,127.98,127.88,1.3577]
[1725639824890,3.9112,127.91,127.88,1.3577]
[1725639825592,3.9114,127.9,127.88,1.3577]
[1725639826095,3.9112,127.91,127.88,5.2697]
[1725639826397,49.04123329,127.98,127.88,1.3577]
[1725639826603,3.9111,127.92,127.88,5.2695]
[1725639827094,49.04123329,127.98,127.88,5.2697]
[1725639827296,45.1,127.96,127.88,1.3577]
[1725639827601,3.9117,127.89,127.88,1.3577]
[1725639828894,3.9117,127.89,127.85,45.1]
[1725639828895,3.9125,127.87,127.85,45.1]
[1725639829291,3.8841807,127.91,127.85,45.1]
[1725639829494,3.9126,127.86,127.85,45.1]
[1725639829691,3.9126,127.86,127.85,45.06]
[1725639829999,3.89904613,127.91,127.85,45.06]
[1725639830303,10.4824,127.95,127.85,45.06]
[1725639830495,3.9118,127.89,127.85,48.9728]
[1725639830705,10.4824,127.95,127.85,45.06]
[1725639830999,2.6626,127.95,127.87,45.1]
[1725639831204,2.6626,127.95,127.87,49.0123]
[1725639831897,3.94123329,127.98,127.89,45.1]
[1725639832094,2.6601,127.99,127.89,45.1]
[1725639832301,2.6601,127.99,127.89,49.0115]
[1725639832898,3.9105,127.93,127.89,49.0115]
[1725639833091,3.98274757,127.97,127.9,3.9114]
[1725639833294,2.6601,127.99,127.9,3.9114]
[1725639833491,3.9104,127.94,127.91,5.32727399]
[1725639833901,3.9105,127.93,127.91,5.32727399]
[1725639834100,3.97805186,127.97,127.91,1.3187]
[1725639834297,2.6601,127.99,127.91,1.3187]
[1725639834495,3.9108,127.92,127.91,1.3187]
[1725639834696,3.98698568,127.95,127.91,1.3187]
[1725639834891,2.6601,127.99,127.91,1.3187]
[1725639835096,2.6601,127.99,127.89,45.1]
[1725639835403,2.6601,127.99,127.87,45.1]
[1725639835404,1.08739659,127.98,127.88,1.4087]
[1725639835699,3.94395081,127.98,127.88,5.3206]
[1725639835900,2.6601,127.99,127.88,5.3206]
[1725639836198,3.9109,127.92,127.88,5.3206]
[1725639836599,3.9102,127.94,127.88,1.4087]
[1725639836799,3.9102,127.94,127.9,45.1]
[1725639836999,3.9102,127.94,127.91,3.862967]
[1725639837303,4.00106983,127.96,127.88,46.5087]
[1725639837493,45.1,127.98,127.88,50.4206]
[1725639837698,48.99230896,127.98,127.88,50.4206]
[1725639838299,3.89230896,127.98,127.89,3.9117]
[1725639838497,2.6601,127.99,127.89,3.9117]
[1725639838697,2.6601,127.99,127.9,3.9114]
[1725639839001,3.9104,127.94,127.9,3.9114]
[1725639839403,3.98776814,127.97,127.89,3.9116]
[1725639839601,2.6601,127.99,127.89,3.9116]
[1725639839900,3.9108,127.92,127.89,3.9116]
[1725639840101,3.91187026,127.96,127.89,3.9116]
[1725639840301,3.9109,127.92,127.88,46.5087]
[1725639840502,3.92955782,127.95,127.88,46.5087]
[1725639840698,2.6601,127.99,127.88,50.4206]
[1725639840999,2.6601,127.99,127.88,46.5087]
[1725639841506,3.9104,127.94,127.88,46.5087]
[1725639841798,3.9104,127.94,127.9,3.9113]
[1725639842002,3.9104,127.94,127.91,3.89005102]
[1725639842195,3.865017,127.97,127.88,46.5087]
[1725639842196,3.91,127.95,127.9,45.1]
[1725639842395,3.91,127.95,127.91,7.85062789]
[1725639842596,3.9101,127.95,127.91,3.9109]
[1725639842803,3.9101,127.95,127.9,45.1]
[1725639843102,2.6601,127.99,127.91,3.9109]
[1725639843302,3.91664965,127.98,127.91,7.79273673]
[1725639843604,3.91664965,127.98,127.92,3.9107]
[1725639843804,3.9098,127.96,127.92,3.9107]
[1725639844000,3.91664965,127.98,127.9,45.1]
[1725639844195,3.91664965,127.98,127.91,3.9109]
[1725639844402,3.9099,127.95,127.92,41.55074419]
[1725639845006,227.0,128.02,127.94,37.56]
[1725639845298,138.00023945,128.03,127.92,3.99074419]
[1725639845299,2.6942,128.03,127.95,38.9614]
[1725639845503,3.9094,127.97,127.95,38.9614]
[1725639845706,2.6942,128.03,127.95,1.4014]
[1725639846007,3.9096,127.96,127.95,1.4014]
[1725639846507,3.9094,127.97,127.95,1.4014]
[1725639846702,3.87623358,127.98,127.95,1.4014]
[1725639846902,37.56,127.98,127.89,37.56]
[1725639847201,41.38852368,127.98,127.88,3.9916]
[1725639847598,3.82852368,127.98,127.89,37.56]
[1725639847799,37.56,128.0,127.89,37.56]
[1725639848001,38.64526606,127.99,127.89,37.56]
[1725639848195,37.56,127.99,127.89,37.56]
[1725639848406,37.56,127.97,127.88,1.3605]
[1725639848607,2.6528,127.96,127.88,1.3605]
[1725639848902,2.6528,127.96,127.89,37.56]
[1725639849101,1.301,127.96,127.89,37.56]
[1725639849301,1.301,127.96,127.88,1.3605]
[1725639850406,1.301,127.96,127.89,3.9117]
[1725639850907,3.9106,127.93,127.89,3.9117]
[1725639851102,1.301,127.96,127.88,1.3605]
[1725639851306,37.56,128.0,127.91,37.56]
[1725639851509,3.9099,127.95,127.92,3.93190476]
[1725639851805,3.9099,127.95,127.92,3.93620748]
[1725639852006,3.9097,127.96,127.92,3.93620748]
[1725639852204,3.9097,127.96,127.93,37.56]
[1725639852413,3.90608843,127.98,127.93,37.56]
[1725639852606,1.2894,128.0,127.91,37.56]
[1725639852805,37.56,127.98,127.89,37.56]
[1725639853010,1.402,127.97,127.89,37.56]
[1725639853810,3.9101,127.95,127.91,37.56]
[1725639854207,3.92447278,127.98,127.92,3.89318027]
[1725639854401,3.9099,127.95,127.92,3.89318027]
[1725639854606,250.55,128.1,127.94,37.56]
[1725639854607,37.56,128.04,127.94,37.56]
[1725639854810,37.56,128.04,127.95,1.3845]
[1725639855004,3.9096,127.96,127.95,1.3845]
[1725639855211,3.87870748,127.98,127.92,44.05603809]
[1725639855513,37.56,128.0,127.92,3.85523809]
[1725639855715,37.56,127.98,127.88,40.3055]
[1725639855905,37.56,127.94,127.85,1.2798]
[1725639856111,2.6176,127.93,127.86,37.56]
[1725639856414,3.94878944,127.94,127.87,37.56]
[1725639856615,37.56,127.96,127.87,37.56]
[1725639856918,41.42113421,127.96,127.87,37.56]
[1725639857109,3.86113421,127.96,127.87,37.56]
[1725639857304,37.56,127.98,127.87,37.56]
[1725639857719,37.56,127.98,127.89,3.9117]
[1725639857910,41.51622448,127.98,127.89,3.9117]
[1725639858613,3.95622448,127.98,127.91,37.56]
[1725639858820,2.6691,128.01,127.93,37.56]
[1725639859414,2.6691,128.01,127.93,40.1276]
[1725639859613,3.909,127.98,127.93,40.1276]
[1725639859815,2.6691,128.01,127.93,40.1276]
[1725639860120,2.6691,128.01,127.93,2.5676]
[1725639860416,2.6691,128.01,127.94,41.4702]
[1725639860618,3.9087,127.99,127.94,37.56]
[1725639860815,3.9087,127.99,127.95,3.9099]
[1725639861410,2.6691,128.01,127.94,37.56]
[1725639861919,3.9095,127.97,127.93,2.5676]
[1725639862116,2.6691,128.01,127.94,37.56]
[1725639862310,1.2769,128.01,127.96,37.56]
[1725639862510,3.9087,127.99,127.96,37.56]
[1725639862717,1.2769,128.01,127.94,37.56]
[1725639862917,1.2769,128.01,127.93,2.5676]
[1725639864018,1.3722,128.04,127.96,37.56]
[1725639864623,1.3722,128.04,127.98,37.56]
[1725639864827,3.9079,128.02,127.99,1.2821]
[1725639865323,3.9079,128.02,127.99,5.1907]
[1725639866118,3.9079,128.02,127.99,1.2821]
[1725639866728,3.9081,128.01,127.99,1.2821]
[1725639867225,3.9073,128.04,128.0,41.4682]
[1725639867527,3.96150652,128.07,128.02,37.56]
[1725639867722,3.9073,128.04,128.02,37.56]
[1725639868220,38.9349,128.11,128.02,37.56]
[1725639868527,3.9063,128.07,128.04,37.56]
[1725639868719,5.25860727,128.11,128.04,37.56]
[1725639868918,5.25860727,128.11,128.05,3.93726756]
[1725639868919,3.9056,128.09,128.05,3.93726756]
[1725639869319,3.9056,128.09,128.05,7.84406756]
[1725639869516,3.9056,128.09,128.05,3.9068]
[1725639869717,38.9422,128.15,128.06,37.56]
[1725639869718,3.9054,128.1,128.06,37.56]
[1725639869918,38.9422,128.15,128.06,37.56]
[1725639870520,3.9057,128.09,128.06,37.56]
[1725639870723,1.3822,128.15,128.06,37.56]
[1725639870923,1.3822,128.15,128.08,37.56]
[1725639871130,3.905,128.11,128.08,37.56]
[1725639871429,1.3822,128.15,128.08,37.56]
[1725639871620,3.9049,128.12,128.08,41.46924095]
[1725639872018,1.3822,128.15,128.08,37.56]
[1725639872219,1.3822,128.15,128.08,41.49933007]
[1725639872530,1.3822,128.15,128.08,42.82553007]
[1725639872728,3.9049,128.12,128.08,42.82553007]
[1725639872922,1.3822,128.15,128.08,1.3262]
[1725639873432,3.9052,128.11,128.08,1.3262]
[1725639873726,1.3822,128.15,128.08,1.3262]
[1725639874527,3.9055,128.1,128.08,1.3262]
[1725639874829,3.89395674,128.1,128.05,3.80879597]
[1725639875025,3.9058,128.09,128.06,37.56]
[1725639875225,1.3822,128.15,128.07,3.83457858]
[1725639875422,1.3822,128.15,128.06,37.56]
[1725639875627,37.56,128.14,128.04,37.56]
[1725639876123,37.56,128.14,128.04,41.467]
[1725639876321,37.56,128.14,128.04,37.56]
[1725639876827,3.9058,128.09,128.05,3.84290768]
[1725639877028,37.56,128.14,128.04,41.4669]
[1725639877228,37.56,128.14,128.05,3.95933575]
[1725639877428,37.56,128.14,128.04,41.4669]
[1725639878028,3.9058,128.09,128.05,3.84525187]
[1725639879125,1.3822,128.15,128.06,37.56]
[1725639879335,37.56,128.14,128.05,3.851888]
[1725639879725,3.9061,128.08,128.05,3.851888]
[1725639880233,3.9058,128.09,128.05,3.851888]
[1725639880635,37.56,128.14,128.05,3.851888]
[1725639880926,3.9062,128.08,128.05,3.851888]
[1725639881332,3.8854914,128.11,128.04,37.56]
[1725639881333,3.9063,128.07,128.04,37.56]
[1725639881529,37.56,128.14,128.05,3.95269821]
[1725639882030,3.9061,128.08,128.05,3.95269821]
[1725639882334,3.9064,128.07,128.04,37.56]
[1725639882733,3.9064,128.07,128.05,3.93081478]
[1725639883128,3.93862874,128.1,128.04,37.56]
[1725639883323,37.56,128.14,128.04,37.56]
[1725639883834,37.56,128.12,128.02,37.56]
[1725639885426,1.3822,128.15,128.06,37.56]
[1725639885627,1.3822,128.15,128.07,3.9705048]
[1725639886039,1.3822,128.15,128.06,37.56]
[1725639886431,1.3822,128.15,128.06,29.725]
[1725639887135,3.9056,128.1,128.06,29.725]
[1725639887326,1.3822,128.15,128.06,29.725]
[1725639887536,3.9064,128.07,128.05,37.56]
[1725639887724,38.9422,128.15,128.05,41.48165989]
[1725639887929,8.36349857,128.14,128.05,41.48165989]
[1725639888129,3.9058,128.09,128.05,41.48165989]
[1725639888334,1.3822,128.15,128.07,37.56]
[1725639888535,8.36053406,128.14,128.07,29.72500382]
[1725639888731,3.9058,128.09,128.07,29.72500382]
[1725639889641,3.9054,128.1,128.07,21.89000382]
[1725639890546,3.9052,128.11,128.07,21.89000382]
[1725639890740,3.9052,128.11,128.09,37.56]
[1725639891346,3.9053,128.1,128.09,37.56]
[1725639891545,3.9053,128.1,128.09,29.72500112]
[1725639892442,3.9053,128.1,128.09,21.89000112]
[1725639892943,3.9052,128.11,128.09,21.89000112]
[1725639893740,41.5786,128.19,128.09,14.0550049]
[1725639893941,8.36579578,128.18,128.09,14.0550049]
[1725639894244,8.36579578,128.17,128.09,14.0550049]
[1725639894446,3.9049,128.12,128.09,14.0550049]
[1725639894648,37.56,128.17,128.09,14.0550049]
[1725639894938,3.9052,128.11,128.09,14.0550049]
[1725639895447,3.9053,128.1,128.08,1.3529]
[1725639896646,3.9056,128.09,128.08,1.3529]
[1725639898541,3.9055,128.1,128.08,1.3529]
[1725639898836,3.9055,128.1,128.08,38.9129]
[1725639899039,3.9055,128.1,128.08,40.2739]
[1725639899247,3.9051,128.11,128.08,36.3448]
[1725639899545,3.9051,128.11,128.09,37.56]
[1725639899744,3.9051,128.11,128.09,29.725]
[1725639900145,3.9053,128.1,128.09,29.725]
[1725639900649,3.9056,128.09,128.08,1.361]
[1725639900848,7.807,128.16,128.08,1.361]
[1725639901057,8.36492127,128.15,128.09,37.56]
[1725639901251,3.9053,128.1,128.09,37.56]
[1725639902052,7.807,128.16,128.09,29.72500505]
[1725639902053,3.9051,128.11,128.09,29.72500505]
[1725639902249,7.807,128.16,128.09,29.72500505]
[1725639902555,8.35787499,128.15,128.09,33.63050505]
[1725639902745,8.35787499,128.14,128.09,29.72500505]
[1725639902947,37.56,128.17,128.09,29.72500505]
[1725639903148,8.35547597,128.16,128.09,29.72500505]
[1725639903348,8.35547597,128.15,128.09,29.72500505]
[1725639903548,8.35547597,128.16,128.09,29.72500505]
[1725639903844,3.9049,128.12,128.09,29.72500505]
[1725639904248,3.9049,128.12,128.09,30.02]
[1725639904755,30.02,128.17,128.09,33.9255]
[1725639904958,8.35521384,128.16,128.09,33.9255]
[1725639905253,30.02,128.17,128.09,33.9255]
[1725639905556,8.3550214,128.16,128.09,30.02]
[1725639905749,8.3550214,128.15,128.09,30.02]
[1725639905949,8.3550214,128.14,128.09,30.02]
[1725639906149,30.02,128.17,128.09,30.02]
[1725639906359,3.9048,128.12,128.09,30.02]
[1725639906651,30.02,128.17,128.09,30.02]
[1725639906851,8.3525589,128.16,128.09,30.02]
[1725639907049,8.3525589,128.15,128.09,30.02]
[1725639907258,8.3525589,128.14,128.09,30.02]
[1725639907557,3.9048,128.12,128.09,30.02]
[1725639907856,3.9054,128.1,128.06,33.88222536]
[1725639908059,30.02,128.16,128.08,30.02]
[1725639908450,3.9052,128.11,128.08,30.02]
[1725639908752,8.35081981,128.15,128.09,30.02]
[1725639908951,7.893327,128.19,128.11,30.02]
[1725639908952,8.35182733,128.14,128.11,30.02]
[1725639909152,37.913327,128.19,128.11,22.18500519]
[1725639909350,8.35207305,128.18,128.11,26.09000519]
[1725639909553,3.9036,128.16,128.12,30.02]
[1725639909753,8.35207305,128.15,128.12,30.02]
[1725639909952,3.9036,128.16,128.13,3.85381538]
[1725639911253,3.9036,128.16,128.12,29.94331538]
[1725639911454,3.9036,128.16,128.12,22.1083166]
[1725639911857,3.9036,128.16,128.13,3.89790399]
[1725639913560,3.9038,128.15,128.12,18.17124064]
[1725639914061,3.9038,128.15,128.13,3.97444068]
[1725639914652,3.9038,128.15,128.12,14.31068257]
[1725639914963,3.9038,128.15,128.13,3.89478125]
[1725639915756,3.9037,128.16,128.14,30.02]
[1725639916066,3.9037,128.16,128.14,25.99778586]
[1725639916261,3.9038,128.15,128.14,25.99778586]
[1725639916761,3.9036,128.16,128.14,25.99778586]
[1725639916960,3.9036,128.16,128.14,18.16278586]
[1725639917462,3.9033,128.17,128.14,18.16278586]
[1725639917668,7.8038,128.22,128.14,18.16278586]
[1725639917865,20.71521332,128.21,128.14,10.32778586]
[1725639918063,8.35237242,128.2,128.14,10.32778586]
[1725639918367,8.35237242,128.19,128.14,10.32778586]
[1725639918564,3.9992,128.24,128.13,3.9042]
[1725639918565,6.23987242,128.18,128.13,30.02]
[1725639918758,227.0,128.27,128.18,30.02]
[1725639918957,3.9021,128.21,128.2,30.02]
[1725639919159,3.9021,128.21,128.19,30.02]
[1725639919361,30.02,128.27,128.19,30.02]
[1725639919673,3.9021,128.21,128.17,30.02]
[1725639920170,30.02,128.27,128.17,30.02]
[1725639920468,5.32748821,128.28,128.17,30.02]
[1725639920469,30.02,128.25,128.17,30.02]
[1725639920661,1.2861,128.24,128.17,33.9231]
[1725639921369,3.9022,128.21,128.17,33.9231]
[1725639921766,5.32748821,128.28,128.19,30.02]
[1725639921969,5.32748821,128.28,128.2,3.9173771]
[1725639922168,20.71391379,128.27,128.2,3.9173771]
[1725639922466,3.9018,128.22,128.2,3.9173771]
[1725639923557,8.35239112,128.21,128.2,3.9173771]
[1725639923767,8.35265143,128.21,128.13,3.89790399]
[1725639924069,23.40468275,128.2,128.07,30.02]
[1725639924273,3.9045,128.13,128.07,34.01044706]
[1725639925173,30.02,128.19,128.09,30.02]
[1725639925373,20.69923056,128.18,128.11,3.9048]
[1725639925574,3.9045,128.13,128.09,30.02]
[1725639925775,3.9045,128.13,128.09,33.9254]
[1725639925971,3.82105601,128.14,128.07,3.99044706]
[1725639926272,1.3023,128.13,128.07,37.48]
[1725639926476,9.64289369,128.13,128.07,41.46927615]
[1725639926679,37.48,128.17,128.07,41.46927615]
[1725639926680,8.34059369,128.12,128.09,37.48]
[1725639926975,1.2706,128.19,128.11,37.48]
[1725639927171,20.68787682,128.18,128.11,37.48]
[1725639927367,20.68787682,128.17,128.11,41.47051705]
[1725639927574,20.68787682,128.16,128.11,41.47051705]
[1725639927766,20.68787682,128.15,128.11,41.47051705]
[1725639927972,8.34023442,128.14,128.11,41.47051705]
[1725639928173,12.24463442,128.13,128.11,41.47051705]
[1725639928368,1.2706,128.19,128.11,41.47051705]
[1725639928369,8.34023442,128.12,128.11,41.47051705]
[1725639929077,8.34023442,128.12,128.11,45.37551705]
[1725639929373,3.904,128.15,128.11,45.37551705]
[1725639929576,1.2706,128.19,128.11,45.37551705]
[1725639929577,3.9041,128.14,128.11,45.37551705]
[1725639929876,8.33464819,128.13,128.11,41.47051705]
[1725639930179,8.33464819,128.12,128.11,41.47051705]
[1725639930677,8.33464819,128.12,128.11,45.37551705]
[1725639930884,3.9042,128.14,128.11,45.37551705]
[1725639931178,8.33468359,128.13,128.11,45.37551705]
[1725639931478,8.33468359,128.12,128.11,45.37551705]
[1725639931871,3.9042,128.14,128.11,45.37551705]
[1725639932179,12.2409587,128.13,128.11,45.37551705]
[1725639932377,8.3365587,128.12,128.06,37.48]
[1725639932573,37.48,128.17,128.06,37.48]
[1725639932873,8.33819584,128.11,128.06,45.28403243]
[1725639933068,45.2868,128.17,128.08,37.48]
[1725639933069,8.33819584,128.1,128.08,37.48]
[1725639933275,8.33819584,128.09,128.06,37.48]
[1725639933576,1.2706,128.19,128.08,37.48]
[1725639933877,3.9045,128.13,128.11,37.48]
[1725639934077,1.2706,128.19,128.11,37.48]
[1725639934275,12.3468408,128.18,128.11,41.4034222]
[1725639934978,3.9043,128.14,128.11,41.4034222]
[1725639936077,3.9043,128.14,128.11,45.3084222]
[1725639936277,3.9043,128.14,128.11,41.4034222]
[1725639936474,3.9045,128.13,128.11,41.4034222]
[1725639936672,37.48,128.18,128.09,37.48]
[1725639936878,37.48,128.18,128.09,41.48192189]
[1725639937076,3.9046,128.13,128.09,41.48192189]
[1725639937277,37.48,128.18,128.09,45.38732189]
[1725639937579,3.9042,128.14,128.09,41.48192189]
[1725639937975,1.2706,128.19,128.09,41.48192189]
[1725639939076,3.9047,128.13,128.09,45.38742189]
[1725639939273,1.2706,128.19,128.09,41.48192189]
[1725639939480,1.2706,128.19,128.11,37.48]
[1725639939676,1.2706,128.19,128.12,3.9046]
[1725639940181,1.2706,128.19,128.11,37.48]
[1725639940578,38.7506,128.19,128.09,41.48192189]
[1725639940874,3.9043,128.14,128.1,3.9051]
[1725639941078,38.7506,128.19,128.11,37.48]
[1725639941571,1.2706,128.19,128.11,41.3849]
[1725639941874,1.2706,128.19,128.13,37.48]
[1725639942080,1.2706,128.19,128.14,3.87156791]
[1725639942278,3.9033,128.17,128.14,3.87156791]
[1725639942879,3.9035,128.16,128.14,3.87156791]
[1725639943077,1.2706,128.19,128.14,3.87156791]
[1725639944676,3.9038,128.15,128.13,37.48]
[1725639944877,3.9038,128.15,128.13,41.47513682]
[1725639945280,3.9035,128.16,128.13,41.47513682]
[1725639946076,3.9035,128.16,128.13,33.99513682]
[1725639947585,3.9035,128.16,128.13,37.89953682]
[1725639947788,1.2706,128.19,128.15,30.0]
[1725639947989,1.2706,128.19,128.17,30.0]
[1725639948586,3.903,128.18,128.17,30.0]
[1725639948989,1.3832,128.2,128.17,30.0]
[1725639948990,1.2976,128.21,128.17,30.0]
[1725639949187,3.9028,128.19,128.17,30.0]
[1725639949494,1.2976,128.21,128.17,30.0]
[1725639950595,3.9025,128.2,128.17,30.0]
[1725639950993,1.2976,128.21,128.17,30.0]
[1725639951296,3.9023,128.2,128.17,30.0]
[1725639952796,3.9022,128.21,128.18,30.0]
[1725639952996,1.381,128.25,128.18,30.0]
[1725639953293,1.3794,128.26,128.2,30.0]
[1725639953493,1.3794,128.26,128.22,30.0]
[1725639953692,1.3794,128.26,128.22,33.99810557]
[1725639954496,3.901,128.25,128.22,33.99810557]
[1725639956703,3.9003,128.27,128.24,30.0]
[1725639956998,3.9003,128.27,128.26,30.0]
[1725639958104,1.2842,128.31,128.26,33.91810608]
[1725639958804,1.2842,128.31,128.26,37.81850608]
[1725639958805,24.58311899,128.3,128.26,37.81850608]
[1725639959002,12.34587618,128.29,128.26,37.81850608]
[1725639959208,12.23784281,128.28,128.24,3.9008]
[1725639959409,8.33784281,128.27,128.26,30.0]
[1725639959898,12.23794281,128.27,128.26,30.0]
[1725639960295,12.23794281,128.27,128.26,22.16500125]
[1725639960704,12.23794281,128.27,128.26,14.33000256]
[1725639961699,12.23794281,128.27,128.26,6.49500726]
[1725639962003,8.33784281,128.27,128.26,6.49500726]
[1725639962614,334.27140223,128.45,128.26,6.49500726]
[1725639962908,2.7481,128.35,128.29,30.0]
[1725639963118,3.8992,128.3,128.29,33.9399844]
[1725639963303,8.32886204,128.3,128.29,33.9399844]
[1725639964506,3.8991,128.31,128.29,33.9399844]
[1725639964703,3.8992,128.3,128.29,30.0]
[1725639965013,12.22649877,128.3,128.29,30.0]
[1725639965206,2.7481,128.35,128.29,30.0]
[1725639965418,15.0784788,128.35,128.32,30.0]
[1725639965708,12.3303788,128.34,128.32,33.83777886]
[1725639965912,16.2285788,128.34,128.32,33.83777886]
[1725639966115,9.750324,128.41,128.33,30.0]
[1725639966413,16.21471719,128.4,128.34,3.8840721]
[1725639966717,16.21471719,128.4,128.32,30.0]
[1725639966718,16.21471719,128.39,128.32,30.0]
[1725639966910,3.8976,128.36,128.33,3.82596117]
[1725639967111,1.3453,128.38,128.35,30.0]
[1725639967313,12.31566842,128.37,128.35,30.0]
[1725639967614,6.51538228,128.41,128.35,30.0]
[1725639968008,12.3147324,128.4,128.35,30.0]
[1725639968317,12.3147324,128.4,128.35,22.16500597]
[1725639968502,3.897,128.38,128.35,22.16500597]
[1725639968709,12.3147324,128.37,128.35,14.33001067]
[1725639969013,3.897,128.38,128.35,14.33001067]
[1725639969311,3.8971,128.37,128.33,33.87276192]
[1725639969613,2.62,128.41,128.27,1.3988]
[1725639969915,1.3081,128.36,128.27,33.82174152]
[1725639970210,3.8988,128.32,128.27,33.81199516]
[1725639970417,6.63662679,128.35,128.27,33.81199516]